fUSD/lending_fUSD_20260315
["ID","MTS","AMOUNT","RATE_DAILY","PERIOD"]
[408415908,1773586244974,-1062.77697115,0.00027396,10]
[408415909,1773586244982,-2560.21,0.00027396,2]
[408415910,1773586244990,-5003.0,0.00027397,120]
[408415911,1773586244998,-1000.0,0.00027397,20]
[408415912,1773586245006,-300.0,0.00027397,2]
[408415913,1773586245015,-167.38,0.00027397,2]
[408415914,1773586245023,-151.0,0.00027397,2]
[408415915,1773586245031,-151.037539,0.00027397,2]
[408415916,1773586245040,-151.0,0.00027397,2]
[408415917,1773586245048,-151.0,0.00027397,2]
[408415918,1773586245057,-151.0,0.00027397,2]
[408415919,1773586245064,-151.0,0.00027397,2]
[408415920,1773586245072,-151.0,0.00027397,2]
[408415921,1773586245081,-151.0,0.00027397,2]
[408415922,1773586245088,-151.0,0.00027397,2]
[408415923,1773586245097,-151.0,0.00027397,2]
[408415924,1773586245106,-151.0,0.00027397,2]
[408415925,1773586245121,-151.0,0.00027397,2]
[408415926,1773586245130,-151.0,0.00027397,2]
[408415927,1773586245138,-151.0,0.00027397,2]
[408415928,1773586245146,-151.0,0.00027397,2]
[408415929,1773586245154,-175.875112,0.00027397,2]
[408415930,1773586245162,-12776.21,0.00027397,10]
[408415931,1773586245171,-12776.21,0.00027397,10]
[408415932,1773586245180,-517.0,0.000275,11]
[408415933,1773586245188,-158.04,0.00027789,2]
[408415934,1773586245196,-153.56106977,0.00027986,2]
[408415935,1773586245205,-469.87233333,0.00028,10]
[408415936,1773586245214,-5000.0,0.00028,7]
[408415937,1773586245222,-469.87233333,0.00028,7]
[408415938,1773586245231,-469.87233333,0.00028,10]
[408415939,1773586245240,-170.0,0.00028012,3]
[408415940,1773586245247,-157.0,0.00028012,3]
[408415941,1773586245254,-152.0,0.00028153,4]
[408415942,1773586245261,-150.0,0.00028544,2]
[408415943,1773586245269,-629.0,0.0002861,2]
[408415944,1773586245276,-771.0,0.00028646,7]
[408415945,1773586245284,-12353.16957769,0.00028681,2]
[408415946,1773586245291,-150.0,0.00029,2]
[408415947,1773586245300,-4674.74271067,0.00029012,28]
[408415948,1773586245307,-6598.07315124,0.00029077,2]
[408415949,1773586245314,-269.55189864,0.00029112,2]
[408415950,1773586245321,-732.216135,0.00029151,14]
[408415951,1773586245328,-937.0,0.00029152,2]
[408415952,1773586245334,-500.0,0.00029448,2]
[408415953,1773586245341,-500.0,0.00029448,2]
[408415954,1773586245348,-1343.0,0.00029448,2]
[408415955,1773586245355,-3434.312,0.00029448,2]
[408415956,1773586245362,-620.0,0.00029448,2]
[408415957,1773586245370,-1043.0,0.00029448,2]
[408415958,1773586245376,-1260.0,0.00029448,2]
[408415959,1773586245383,-923.0,0.00029448,2]
[408415960,1773586245389,-414.0,0.00029448,2]
[408415961,1773586245397,-3060.83650565,0.000299,2]
[408415962,1773586245404,-152.0,0.00029907,5]
[408415963,1773586245411,-20000.0,0.0003,30]
[408415964,1773586245417,-167.38,0.00030137,2]
[408415965,1773586245425,-7959.0,0.00030137,120]
[408415966,1773586245435,-157.0,0.00030177,3]
[408415967,1773586245443,-2000.0,0.000303,2]
[408415968,1773586245452,-596.15576869,0.00030311,2]
[408415969,1773586245462,-937.0,0.00030614,7]
[408415970,1773586245471,-158.04,0.00030724,2]
[408415971,1773586245480,-1075.15316852,0.0003077,15]
[408415972,1773586245489,-937.0,0.00030771,2]
[408415973,1773586245497,-937.0,0.00030825,2]
[408415974,1773586245507,-7725.17211558,0.00030977,2]
[408415975,1773586245516,-469.87233333,0.00031,120]
[408415976,1773586245525,-160.0,0.00031,120]
[408415977,1773586245534,-150.0,0.00031,2]
[408415978,1773586245544,-12353.16957769,0.00031561,2]
[408415979,1773586245554,-152.0,0.00031661,6]
[408415980,1773586245563,-6598.07315124,0.00031858,2]
[408415981,1773586245572,-170.414031,0.00032101,14]
[408415982,1773586245581,-157.0,0.00032341,3]
[408415983,1773586245590,-1343.0,0.00032448,2]
[408415984,1773586245599,-620.0,0.00032448,2]
[408415985,1773586245609,-1043.0,0.00032448,2]
[408415986,1773586245618,-1260.0,0.00032448,2]
[408415987,1773586245627,-923.0,0.00032448,2]
[408415988,1773586245636,-414.0,0.00032448,2]
[408415989,1773586245645,-201.94987361,0.00032603,2]
[408415990,1773586245654,-150.0,0.00032603,2]
[408415991,1773586245663,-500.0,0.00032603,2]
[408415992,1773586245673,-150.0,0.00032603,2]
[408415993,1773586245685,-150.78103029,0.00032603,2]
[408415994,1773586245694,-150.0,0.00032658,2]
[408415995,1773586245703,-500.0,0.00032658,2]
[408415996,1773586245713,-150.0,0.00032658,2]
[408415997,1773586245723,-150.0,0.00032713,2]
[408415998,1773586245733,-204.03813108,0.00032713,2]
[408415999,1773586245743,-150.0,0.00032713,2]
[408416000,1773586245756,-517.0,0.0003275,16]
[408416001,1773586245765,-153.80287197,0.00032767,2]
[408416002,1773586245775,-150.0,0.00032767,2]
[408416003,1773586245786,-500.0,0.0003278,2]
[408416004,1773586245795,-500.0,0.0003278,2]
[408416005,1773586245805,-2560.21,0.0003278,2]
[408416006,1773586245815,-144935.72377439,0.00032781,7]
[408416007,1773586245826,-5548.535286,0.00032781,7]
[408416008,1773586245835,-7322.142819,0.000328,120]
[408416009,1773586245847,-150.0,0.00032822,2]
[408416010,1773586245857,-347.11,0.00032877,2]
[408416011,1773586245867,-167.38,0.00032877,2]
[408416012,1773586245876,-151.0,0.00032877,7]
[408416013,1773586245886,-151.0,0.00032877,7]
[408416015,1773586245895,-151.0,0.00032877,7]
[408416017,1773586245904,-155.377736,0.00032877,7]
[408416019,1773586245913,-250.0,0.00032877,2]
[408416020,1773586245923,-1063.08,0.000329,14]
[408416022,1773586245932,-1574.4265,0.00033,120]
[408416023,1773586245941,-194.905144,0.00033,14]
[408416025,1773586245950,-154.0,0.00033,30]
[408416027,1773586245960,-469.87233333,0.00033,7]
[408416028,1773586245968,-152.0,0.00033415,7]
[408416029,1773586245978,-158.04,0.0003366,2]
[408416030,1773586245987,-269.55189864,0.00033718,2]
[408416031,1773586245995,-164.0,0.00034,120]
[408416032,1773586246004,-154.0,0.00034,30]
[408416033,1773586246014,-469.87233333,0.00034,7]
[408416035,1773586246023,-2000.0,0.00034,2]
[408416036,1773586246032,-1198.06,0.00034,120]
[408416037,1773586246041,-446.22436121,0.00034426,46]
[408416038,1773586246050,-12353.16957769,0.00034441,2]
[408416039,1773586246059,-1063.08,0.000345,14]
[408416040,1773586246069,-170.0,0.00034506,3]
[408416041,1773586246078,-157.0,0.00034506,3]
[408416043,1773586246087,-6598.07315124,0.00034638,2]
[408416044,1773586246097,-500.0,0.00034679,50]
[408416045,1773586246106,-151.0,0.00034679,50]
[408416046,1773586246115,-500.0,0.00034679,50]
[408416048,1773586246124,-750.0,0.00034679,50]
[408416050,1773586246133,-500.0,0.00034679,50]
[408416051,1773586246142,-500.0,0.00034679,50]
[408416052,1773586246152,-500.0,0.00034679,50]
[408416053,1773586246160,-3917.15,0.00034854,2]
[408416054,1773586246169,-500.0,0.0003488,120]
[408416055,1773586246179,-500.0,0.0003488,120]
[408416057,1773586246188,-500.0,0.0003488,120]
[408416058,1773586246197,-500.0,0.0003488,120]
[408416059,1773586246207,-500.0,0.0003488,120]
[408416060,1773586246216,-500.0,0.0003488,120]
[408416061,1773586246224,-500.0,0.0003488,120]
[408416062,1773586246233,-500.0,0.0003488,120]
[408416063,1773586246243,-500.0,0.0003488,120]
[408416064,1773586246252,-500.0,0.0003488,120]
[408416065,1773586246261,-500.0,0.0003488,120]
[408416066,1773586246270,-500.0,0.0003488,120]
[408416067,1773586246279,-500.0,0.0003488,120]
[408416068,1773586246288,-500.0,0.0003488,120]
[408416069,1773586246297,-500.0,0.0003488,120]
[408416070,1773586246306,-500.0,0.0003488,120]
[408416071,1773586246315,-500.0,0.0003488,120]
[408416072,1773586246324,-500.0,0.0003488,120]
[408416073,1773586246333,-500.0,0.0003488,120]
[408416074,1773586246342,-500.0,0.0003488,120]
[408416075,1773586246351,-640.11663207,0.0003488,120]
[408416076,1773586246361,-7725.17211558,0.00034951,2]
[408416077,1773586246370,-451.54591552,0.0003497,2]
[408416078,1773586246379,-1107.50977529,0.00034998,30]
[408416079,1773586246389,-310.34047913,0.00034999,10]
[408416080,1773586246398,-500.0,0.00034999,30]
[408416081,1773586246407,-151.0,0.00034999,30]
[408416082,1773586246417,-500.0,0.00034999,30]
[408416083,1773586246426,-750.0,0.00034999,30]
[408416084,1773586246435,-500.0,0.00034999,30]
[408416085,1773586246446,-500.0,0.00034999,30]
[408416086,1773586246456,-500.0,0.00034999,30]
[408416087,1773586246474,-500.0,0.00034999,2]
[408416089,1773586246486,-293.18219645,0.00034999,2]
[408416091,1773586246496,-2560.21,0.00034999,2]
[408416092,1773586246506,-1931.54301462,0.00035,2]
[408416093,1773586246516,-9287.54430534,0.00035,30]
[408416094,1773586246526,-902.55,0.00035,30]
[408416095,1773586246535,-28586.22,0.00035,120]
[408416096,1773586246545,-469.87233333,0.00035,120]
[408416097,1773586246554,-224623.71939571,0.00035,4]
[408416100,1773586246564,-469.87233333,0.00035,30]
[408416101,1773586246574,-10000.0,0.00035,7]
[408416102,1773586246584,-200.42058914,0.00035,3]
[408416103,1773586246594,-154.0,0.00035,30]
[408416104,1773586246603,-152.0,0.00035169,8]
[408416105,1773586246613,-1343.0,0.00035448,2]
[408416106,1773586246622,-1043.0,0.00035448,2]
[408416107,1773586246632,-1260.0,0.00035448,2]
[408416108,1773586246641,-414.0,0.00035448,2]
[408416110,1773586246808,-345.74478833,0.00035589,120]
[408416111,1773586246819,-150.0,0.00035616,20]
[408416112,1773586246828,-167.38,0.00035616,2]
[408416113,1773586246838,-6198.11846462,0.00035751,51]
[408416114,1773586246847,-186.31526,0.00035888,30]
[408416115,1773586246856,-4000.0,0.000359,13]
[408416116,1773586246866,-279.57463712,0.000359,2]
[408416117,1773586246875,-7589.0,0.00035918,120]
[408416118,1773586246884,-300.0,0.00035999,10]
[408416119,1773586246893,-500.0,0.00035999,2]
[408416120,1773586246902,-2560.21,0.00035999,2]
[408416121,1773586246911,-817.25747429,0.00036,2]
[408416122,1773586246921,-1706.44109218,0.00036,2]
[408416123,1773586246930,-100003.99929952,0.00036,120]
[408416124,1773586246939,-202.0987232,0.00036,5]
[408416125,1773586246948,-1063.08,0.00036,14]
[408416126,1773586246958,-154.0,0.00036,30]
[408416127,1773586246967,-469.87233333,0.00036,120]
[408416128,1773586246976,-186.31526,0.00036088,30]
[408416129,1773586246985,-186.31526,0.00036288,30]
[408416130,1773586246995,-186.31526,0.00036488,30]
[408416131,1773586247005,-902.55,0.000365,30]
[408416132,1773586247014,-459.58955272,0.00036581,54]
[408416133,1773586247023,-158.04,0.00036595,2]
[408416134,1773586247033,-157.0,0.00036671,3]
[408416135,1773586247042,-500.0,0.00036687,46]
[408416136,1773586247053,-151.0,0.00036687,46]
[408416137,1773586247063,-500.0,0.00036687,46]
[408416138,1773586247072,-750.0,0.00036687,46]
[408416139,1773586247083,-500.0,0.00036687,46]
[408416140,1773586247093,-500.0,0.00036687,46]
[408416141,1773586247103,-500.0,0.00036687,46]
[408416142,1773586247112,-186.31526,0.00036688,30]
[408416143,1773586247123,-854.25918243,0.00036737,55]
[408416144,1773586247134,-1622.84019448,0.000368,2]
[408416145,1773586247145,-621.0508,0.00036888,7]
[408416146,1773586247155,-186.31526,0.00036888,30]
[408416147,1773586247165,-152.0,0.00036923,9]
[408416148,1773586247174,-365.0,0.00037,2]
[408416149,1773586247184,-365.16735292,0.00037,3]
[408416150,1773586247194,-166.95214714,0.00037,2]
[408416151,1773586247205,-1063.08,0.00037,14]
[408416152,1773586247215,-154.0,0.00037,30]
[408416153,1773586247225,-186.31526,0.00037088,30]
[408416154,1773586247235,-186.71753907,0.000372,120]
[408416155,1773586247244,-300.0,0.0003721,10]
[408416156,1773586247254,-10804.41819576,0.00037212,120]
[408416157,1773586247263,-300.0,0.00037272,10]
[408416158,1773586247273,-666.0,0.00037272,30]
[408416159,1773586247282,-8314.97,0.00037273,30]
[408416160,1773586247291,-186.31526,0.00037288,30]
[408416161,1773586247300,-3533.65,0.000373,2]
[408416162,1773586247310,-12353.16957769,0.0003732,2]
[408416163,1773586247319,-6598.07315124,0.00037419,2]
[408416164,1773586247328,-310.01472424,0.00037429,10]
[408416165,1773586247337,-6876.85633835,0.00037436,58]
[408416166,1773586247346,-186.31526,0.00037488,30]
[408416167,1773586247356,-902.55,0.000376,30]
[408416168,1773586247365,-186.31526,0.00037688,30]
[408416169,1773586247374,-2000.0,0.000377,2]
[408416170,1773586247383,-3533.65,0.000377,2]
[408416171,1773586247392,-300.0,0.00037869,10]
[408416172,1773586247401,-666.0,0.00037869,30]
[408416173,1773586247410,-203.7219116,0.0003788,2]
[408416174,1773586247419,-186.31526,0.00037888,30]
[408416175,1773586247428,-153.01162946,0.000379,120]
[408416176,1773586247437,-1688.44381379,0.00037978,2]
[408416177,1773586247446,-390.24156109,0.00037999,2]
[408416178,1773586247455,-154.0,0.00038,30]
[408416179,1773586247464,-7234.83414539,0.00038,30]
[408416180,1773586247473,-517.0,0.00038,21]
[408416181,1773586247483,-500.0,0.00038078,2]
[408416182,1773586247493,-500.0,0.00038078,2]
[408416183,1773586247502,-500.0,0.00038078,2]
[408416184,1773586247515,-500.0,0.00038078,2]
[408416185,1773586247525,-500.0,0.00038078,2]
[408416186,1773586247533,-500.0,0.00038078,2]
[408416187,1773586247544,-500.0,0.00038078,2]
[408416188,1773586247553,-500.0,0.00038078,2]
[408416189,1773586247562,-500.0,0.00038078,2]
[408416190,1773586247571,-500.0,0.00038078,2]
[408416191,1773586247580,-500.0,0.00038078,2]
[408416192,1773586247588,-500.0,0.00038078,2]
[408416193,1773586247597,-500.0,0.00038078,2]
[408416194,1773586247606,-500.0,0.00038078,2]
[408416195,1773586247614,-500.0,0.00038078,2]
[408416196,1773586247624,-500.0,0.00038078,2]
[408416197,1773586247635,-500.0,0.00038078,2]
[408416198,1773586247646,-500.0,0.00038078,2]
[408416199,1773586247655,-500.0,0.00038078,2]
[408416200,1773586247664,-500.0,0.00038078,2]
[408416201,1773586247673,-500.0,0.00038078,2]
[408416202,1773586247684,-500.0,0.00038078,2]
[408416203,1773586247694,-500.0,0.00038078,2]
[408416204,1773586247704,-500.0,0.00038078,2]
[408416205,1773586247713,-500.0,0.00038078,2]
[408416206,1773586247722,-500.0,0.00038078,2]
[408416207,1773586247731,-500.0,0.00038078,2]
[408416208,1773586247740,-500.0,0.00038078,2]
[408416209,1773586247753,-500.0,0.00038078,2]
[408416210,1773586247764,-500.0,0.00038078,2]
[408416211,1773586247773,-500.0,0.00038078,2]
[408416212,1773586247782,-500.0,0.00038078,2]
[408416213,1773586247793,-500.0,0.00038078,2]
[408416214,1773586247802,-500.0,0.00038078,2]
[408416215,1773586247812,-500.0,0.00038078,2]
[408416216,1773586247822,-500.0,0.00038078,2]
[408416217,1773586247831,-500.0,0.00038078,2]
[408416218,1773586247841,-500.0,0.00038078,2]
[408416219,1773586247850,-500.0,0.00038078,2]
[408416220,1773586247859,-500.0,0.00038078,2]
[408416221,1773586247868,-500.0,0.00038078,2]
[408416222,1773586247878,-500.0,0.00038078,2]
[408416223,1773586247887,-500.0,0.00038078,2]
[408416224,1773586247896,-500.0,0.00038078,2]
[408416225,1773586247905,-500.0,0.00038078,2]
[408416226,1773586247915,-500.0,0.00038078,2]
[408416227,1773586247925,-500.0,0.00038078,2]
[408416228,1773586247935,-560.0,0.00038078,2]
[408416229,1773586247945,-186.31526,0.00038088,30]
[408416230,1773586247954,-279.33639356,0.00038099,33]
[408416231,1773586247963,-500.0,0.00038099,33]
[408416232,1773586247973,-151.0,0.00038099,33]
[408416233,1773586247982,-500.0,0.00038099,33]
[408416234,1773586247991,-750.0,0.00038099,33]
[408416235,1773586248001,-500.0,0.00038099,33]
[408416236,1773586248009,-500.0,0.00038099,33]
[408416237,1773586248019,-500.0,0.00038099,33]
[408416238,1773586248029,-296.57517427,0.000381,33]
[408416239,1773586248039,-186.31526,0.00038288,30]
[408416240,1773586248050,-513.86473282,0.000383,30]
[408416241,1773586248060,-269.55189864,0.00038323,2]
[408416242,1773586248069,-1043.0,0.00038448,2]
[408416243,1773586248078,-1259.0,0.00038448,2]
[408416244,1773586248087,-414.0,0.00038448,2]
[408416245,1773586248095,-186.31526,0.00038488,30]
[408416246,1773586248104,-9868.05866926,0.000385,30]
[408416247,1773586248114,-3073.00064146,0.00038576,2]
[408416248,1773586248123,-902.55,0.000386,30]
[408416249,1773586248132,-190.30839554,0.0003863,2]
[408416250,1773586248141,-373.47479422,0.00038639,2]
[408416251,1773586248150,-597858.52453055,0.0003864,30]
[408416252,1773586248311,-488.52303721,0.0003864,30]
[408416253,1773586248322,-3099.04360382,0.0003864,30]
[408416254,1773586248332,-2907.11889992,0.0003864,30]
[408416255,1773586248351,-2279.10000001,0.0003864,30]
[408416256,1773586248369,-8795.07659093,0.0003864,30]
[408416257,1773586248380,-8947.21879473,0.0003864,30]
[408416258,1773586248391,-8943.78386462,0.0003864,30]
[408416259,1773586248402,-9077.54866152,0.0003864,30]
[408416260,1773586248686,-611.0,0.00026623,10]
[408416261,1773586248695,-5426.13799127,0.00026623,10]
[408416262,1773586248799,-20.33776017,0.00026623,10]
[408416263,1773586248810,-5616.78205853,0.00026623,10]
[408416264,1773586248855,-1325.74219003,0.00026623,10]
[408416265,1773586248865,-2496.21,0.00029448,2]
[408416266,1773586248874,-151.0,0.00032877,7]
[408416267,1773586248883,-214640.87942766,0.0003864,30]
[408416268,1773586248901,-165.57502,0.00018163,7]
[408416269,1773586248910,-352740.05328903,0.0003864,30]
[408416270,1773586248919,-152.0,0.00038676,10]
[408416271,1773586248929,-186.31526,0.00038688,30]
[408416272,1773586248938,-500.0,0.000387,120]
[408416273,1773586248947,-1044.72351194,0.000387,2]
[408416274,1773586248957,-5838.24569422,0.0003878,2]
[408416275,1773586248966,-157.0,0.00038835,3]
[408416276,1773586248975,-3189.76696834,0.0003889,30]
[408416277,1773586248984,-245.19873486,0.000389,30]
[408416278,1773586248996,-5000.0,0.000389,14]
[408416279,1773586249006,-7725.17211558,0.00038926,2]
[408416280,1773586249016,-1206.8992,0.0003895,2]
[408416281,1773586249025,-10000.0,0.0003895,2]
[408416282,1773586249035,-10009.7434,0.0003895,2]
[408416283,1773586249045,-3072.443785,0.00039,120]
[408416284,1773586249054,-2000.0,0.00039,30]
[408416285,1773586249064,-154.0,0.00039,30]
[408416286,1773586249074,-3533.65,0.00039,30]
[408416287,1773586249083,-1700.0,0.00039082,14]
[408416288,1773586249093,-2600.0,0.00039082,14]
[408416289,1773586249103,-186.31526,0.00039088,30]
[408416290,1773586249114,-6961.16730078,0.00039121,64]
[408416291,1773586249246,-186.31526,0.00039288,30]
[408416292,1773586249259,-500.0,0.00039356,14]
[408416293,1773586249273,-186.31526,0.00039488,30]
[408416294,1773586249283,-158.04,0.0003953,30]
[408416295,1773586249293,-902.55,0.000396,30]
[408416296,1773586249302,-186.31526,0.00039688,30]
[408416297,1773586249313,-512.75059119,0.00039726,120]
[408416298,1773586249323,-1871.691772,0.00039769,2]
[408416299,1773586249331,-186.31526,0.00039888,30]
[408416300,1773586249340,-9629.77525966,0.000399,30]
[408416301,1773586249350,-1000.0,0.000399,14]
[408416302,1773586249359,-1700.0,0.00039904,14]
[408416303,1773586249368,-2600.0,0.00039904,14]
[408416304,1773586249377,-400.0,0.0003997,2]
[408416305,1773586249387,-349.93480678,0.0003997,2]
[408416306,1773586249395,-195.92399743,0.00039999,30]
[408416307,1773586249406,-1033.2525911,0.00039999,30]
[408416308,1773586249416,-1101.84532184,0.00039999,30]
[408416309,1773586249425,-250.0,0.00039999,30]
[408416310,1773586249435,-500.0,0.00039999,30]
[408416311,1773586249443,-151.0,0.00039999,30]
[408416312,1773586249452,-500.0,0.00039999,30]
[408416313,1773586249463,-750.0,0.00039999,30]
[408416314,1773586249473,-500.0,0.00039999,30]
[408416315,1773586249482,-500.0,0.00039999,30]
[408416316,1773586249491,-500.0,0.00039999,30]
[408416317,1773586249500,-2560.21,0.00039999,2]
[408416318,1773586249511,-2560.21,0.00039999,2]
[408416319,1773586249520,-161.0,0.0004,120]
[408416320,1773586249529,-165.0,0.0004,120]
[408416321,1773586249539,-3364.33703368,0.0004,2]
[408416322,1773586249548,-477.12749073,0.0004,30]
[408416323,1773586249558,-12505.78206468,0.0004,30]
[408416324,1773586249568,-1000.0,0.0004,2]
[408416325,1773586249578,-159.63173107,0.0004,120]
[408416326,1773586249588,-2000.71419158,0.0004,30]
[408416327,1773586249597,-213.81697425,0.0004,30]
[408416328,1773586249607,-814.03004457,0.0004,3]
[408416329,1773586249616,-393.1620944,0.0004,2]
[408416330,1773586249628,-1571.03734489,0.0004,2]
[408416331,1773586249638,-14894.72440637,0.0004,30]
[408416332,1773586249647,-225.83145556,0.0004,2]
[408416333,1773586249658,-15103.35594802,0.0004,30]
[408416334,1773586249668,-962.88809868,0.0004,2]
[408416335,1773586249678,-153245.62183919,0.0004,30]
[408416336,1773586249688,-283.08288188,0.0004,30]
[408416337,1773586249697,-540.0,0.0004,30]
[408416338,1773586249708,-708.9386557,0.0004,2]
[408416339,1773586249718,-1680.98393624,0.0004,30]
[408416340,1773586249729,-316.82236682,0.0004,2]
[408416341,1773586249738,-162.68413495,0.0004,2]
[408416342,1773586249751,-1000.0,0.0004,2]
[408416343,1773586249760,-197.23320003,0.0004,120]
[408416344,1773586249770,-3276.51568842,0.0004,120]
[408416345,1773586249781,-41125.8759067,0.0004,120]
[408416346,1773586249791,-4481.50517909,0.0004,60]
[408416347,1773586249800,-458.0,0.0004,30]
[408416348,1773586249810,-1204.0,0.0004,30]
[408416349,1773586249821,-1000.0,0.0004,30]
[408416350,1773586249831,-30000.0,0.0004,120]
[408416351,1773586249840,-11136.60858272,0.0004,120]
[408416352,1773586249853,-4409.31488916,0.0004,120]
[408416353,1773586249865,-1954.44308656,0.0004,120]
[408416354,1773586249877,-821.59455857,0.0004,120]
[408416355,1773586249989,-565.0,0.000345,30]
[408416356,1773586250000,-1678.03888299,0.0004,120]
[408416357,1773586250009,-2000.0,0.0004,88]
[408416358,1773586250019,-2000.0,0.0004,88]
[408416359,1773586250028,-2000.0,0.0004,88]
[408416360,1773586250037,-2000.0,0.0004,88]
[408416361,1773586250047,-2000.0,0.0004,88]
[408416362,1773586250056,-275.38486471,0.0004,2]
[408416363,1773586250065,-846.08498289,0.0004,2]
[408416364,1773586250075,-206.05,0.0004,120]
[408416365,1773586250084,-469.87233333,0.0004,30]
[408416366,1773586250094,-109560.24139108,0.0004,120]
[408416367,1773586250103,-16017.83389783,0.0004,30]
[408416368,1773586250113,-151.22,0.0004,2]
[408416369,1773586250123,-151.22,0.0004,2]
[408416370,1773586250133,-151.22,0.0004,2]
[408416371,1773586250143,-151.22,0.0004,2]
[408416372,1773586250152,-151.22,0.0004,2]
[408416373,1773586250162,-151.22,0.0004,2]
[408416374,1773586250172,-151.22,0.0004,2]
[408416375,1773586250182,-151.22,0.0004,2]
[408416376,1773586250192,-151.22,0.0004,2]
[408416377,1773586250202,-151.22,0.0004,2]
[408416378,1773586250212,-151.22,0.0004,2]
[408416379,1773586250222,-151.22,0.0004,2]
[408416380,1773586250232,-151.22,0.0004,2]
[408416381,1773586250242,-151.22,0.0004,2]
[408416382,1773586250251,-151.22,0.0004,2]
[408416383,1773586250262,-151.22,0.0004,2]
[408416384,1773586250272,-151.22,0.0004,2]
[408416385,1773586250282,-151.22,0.0004,2]
[408416386,1773586250291,-848.0,0.00040039,11]
[408416387,1773586250301,-186.31526,0.00040088,30]
[408416388,1773586250310,-500.0,0.00040178,14]
[408416389,1773586250319,-6598.07315124,0.000402,15]
[408416390,1773586250329,-12353.16957769,0.000402,15]
[408416391,1773586250338,-186.31526,0.00040288,30]
[408416392,1773586250347,-190.30839554,0.0004029,7]
[408416393,1773586250356,-1067.54895648,0.00040299,30]
[408416394,1773586250366,-2560.21,0.00040299,2]
[408416395,1773586250375,-2560.21,0.00040299,2]
[408416396,1773586250384,-2560.21,0.00040299,2]
[408416397,1773586250393,-2560.21,0.00040299,2]
[408416398,1773586250402,-2560.21,0.00040299,2]
[408416399,1773586250412,-2560.21,0.00040299,2]
[408416400,1773586250422,-144604.02945794,0.000403,120]
[408416401,1773586250433,-172364.35405501,0.000403,120]
[408416417,1773586812536,157.92,8.483e-05,2]
[408416425,1773586957354,5674.22408984,9.5e-05,3]
[408416437,1773587364121,-157.92,0.00012724,2]
[408416438,1773587364144,-300.0,0.00013997,2]
[408416439,1773587364164,-300.0,0.00014462,2]
[408416440,1773587364184,-300.0,0.00015967,2]
[408416441,1773587364204,-300.0,0.00015967,2]
[408416442,1773587364224,-1305.78758415,0.000162,5]
[408416443,1773587364244,-150.0,0.00016966,2]
[408416444,1773587364264,-1500.0,0.00016966,2]
[408416445,1773587364286,-157.92,0.00016966,2]
[408416446,1773587364307,-1076.91877585,0.00016981,2]
[408416460,1773587431477,-1200.0,0.00016999,2]
[408416461,1773587431486,-195.0,0.00017,2]
[408416462,1773587431496,-2500.0,0.00017,2]
[408416463,1773587431506,-42.952,0.00017,2]
[408416464,1773587431644,-4119.848,0.00017,2]
[408416465,1773587431655,-517.0,0.00017,2]
[408416466,1773587431665,-250.0,0.00017206,2]
[408416467,1773587431674,-195.0,0.00017431,2]
[408416468,1773587431683,-195.0,0.00017431,2]
[408416469,1773587431692,-252.57608192,0.00017431,2]